[Event "Czech Extraliga 2024-25"]
[Site "Czechia"]
[Date "2024.11.02"]
[Round "1.5"]
[White "Nemec, Jachym"]
[Black "Kraus, Tomas"]
[Result "1/2-1/2"]
[ECO "A46"]
[WhiteElo "2411"]
[BlackElo "2457"]
[Annotator "TA"]
[PlyCount "122"]
[EventDate "2024.09.12"]
[EventType "team-tourn"]
[EventCountry "CZE"]
[SourceTitle "playchess.com"]
[Source "ChessBase"]
[SourceQuality "1"]
[TimeControl "40/5400+30:1800+30"]

{[%evp 28,122,8,0,11,0,0,0,36,34,40,37,31,40,41,32,41,8,23,0,0,0,128,126,127,100,175,174,177,4,23,28,41,37,36,39,36,22,23,0,35,0,0,0,60,60,147,147,253,266,263,269,299,197,208,143,177,139,138,119,99,122,132,115,108,0,0,0,191,0,0,0,0,0,0,0,0,0,0,-40,-55,-44,0,0,0,0,0,0,0,0,0,0,0,0,0,0,0]} 1. d4 {[%emt 0:00:02]} Nf6 {[%emt 0:00:14]} 2. Nf3 {[%emt 0:00:06]} e6 {[%emt 0:00:38]} 3. Bf4 {[%emt 0:00:05]} c5 {[%emt 0:08:55]} 4. e3 {[%emt 0:00:12]} cxd4 {[%emt 0:01:59]} 5. exd4 {[%emt 0:01:22]} b6 {[%emt 0:00:36]} 6. c3 {[%emt 0:01:00] A46: 1 d4 Nf6 2 Nf3 e6: Torre, London and Colle Systems.} Be7 {[%emt 0:02:18]} 7. Nbd2 {[%emt 0:00:16]} O-O {[%emt 0:01:48]} 8. h3 {[%emt 0:01:09]} Ba6 $1 {[%emt 0:03:10][%mdl 4] outshines the older 8...d6.} 9. Bxa6 {[%emt 0:06:32]} Nxa6 {[%emt 0:00:05]} 10. Qe2 {[%emt 0:00:14]} Nc7 {[%emt 0:02:40]} 11. O-O {[%emt 0:00:25]} d6 {[%emt 0:05:26]} 12. Bh2 {[%emt 0:02:25]} b5 {[%emt 0:03:49]} 13. Ne1 {[%emt 0:04:06]} Qd7 {[%emt 0:04:45]} 14. Nd3 {[%emt 0:00:35]} Nfd5 {[%emt 0:04:53]} 15. Rfc1 $146 {[%emt 0:00:39]} ({Predecessor:} 15. Rfe1 Nb6 16. Rad1 Rfe8 17. Ne4 Ncd5 18. Nf4 Nxf4 19. Bxf4 Nd5 20. Bg3 a5 21. Rc1 {1-0 Grachev,B (2626)-Yeritsyan,A (2372) Wch Blitz St Petersburg 2018 (1)}) 15... Rfc8 {[%emt 0:03:41]} 16. a4 {[%emt 0:07:26]} a6 {[%emt 0:04:17]} 17. a5 {[%emt 0:14:12]} f5 {[%emt 0:08:05]} 18. b3 {[%emt 0:05:23]} Bf6 {[%emt 0:02:14]} 19. c4 {[%emt 0:01:34]} Bxd4 {[%emt 0:08:42]} 20. cxd5 {[%emt 0:00:44]} Nxd5 {[%emt 0:00:21]} 21. Rxc8+ {[%emt 0:17:35]} Rxc8 {[%emt 0:00:01]} 22. Rc1 {[%emt 0:04:00]} e5 {[%emt 0:07:04]} 23. Rxc8+ {[%emt 0:07:32]} Qxc8 {[%emt 0:00:02]} 24. Nf3 {[%emt 0:01:10]} Qc3 {[%emt 0:11:45]} (24... Bc3 $11) 25. Nxd4 $16 {[%emt 0:00:56]} Qxd4 {[%emt 0:01:11]} 26. Kh1 {[%emt 0:05:06]} Qa1+ {[%emt 0:02:59]} (26... Kf7 $16 {is a better defense.}) 27. Bg1 $1 $18 {[%emt 0:01:54]} Qxa5 {[%emt 0:02:51]} 28. f3 $2 {[%emt 0:01:09]} (28. Qf3 $18 Ne7 29. Qb7) 28... Qc3 {[%emt 0:01:24]} 29. Qd1 {[%emt 0:00:14]} Nf6 {[%emt 0:01:59]} 30. Bf2 {[%emt 0:01:52]} Kf7 {[%emt 0:02:14]} 31. Be1 {[%emt 0:00:23]} Qd4 {[%emt 0:02:02]} 32. Qc2 {[%emt 0:02:53]} Nd5 {[%emt 0:00:32]} 33. Bd2 {[%emt 0:03:39]} h6 {[%emt 0:01:36]} 34. Bc1 {[%emt 0:00:38]} Qc3 {[%emt 0:00:27]} 35. Qd1 {[%emt 0:02:26]} Ne7 {[%emt 0:01:21]} (35... Ke6 $11) 36. Bb2 $14 {[%emt 0:00:12]} Qc7 {[%emt 0:00:44] [#]} (36... Qa5 $14) 37. f4 $1 $16 {[%emt 0:02:42]} Ng6 {[%emt 0:01:17]} (37... e4 $16 {was necessary.}) 38. fxe5 $18 {[%emt 0:00:23]} dxe5 {[%emt 0:00:25]} 39. Qf3 {[%emt 0:01:28]} Ke6 {[%emt 0:00:41]} 40. Qa8 {[%emt 0:00:48]} Qd6 {[%emt 0:00:29]} 41. Qc8+ {[%emt 0:05:38]} Kf6 {[%emt 0:01:29]} 42. Nc5 {[%emt 0:03:40]} a5 {[%emt 0:01:50]} 43. Ba3 {[%emt 0:04:29]} b4 {[%emt 0:12:54]} 44. Bb2 {[%emt 0:00:08]} h5 {[%emt 0:03:20]} 45. h4 {[%emt 0:03:22]} Qd5 {[%emt 0:09:35]} 46. Qc7 {[%emt 0:05:25]} ({White should try} 46. Qa6+ $16 Kf7 47. Nd3 (47. Qxa5 $2 {loses.} Nf4 $19)) 46... f4 $1 $11 {[%emt 0:01:38]} 47. Nd7+ {[%emt 0:06:07]} Kf5 $2 {[%emt 0:01:07] [#]} (47... Ke6 $1 $11 {and Black stays safe.} 48. Qc2 Kxd7 49. Qxg6 Qd1+ 50. Kh2 Qe1) 48. Nb6 $2 {[%emt 0:03:06]} ({White must play} 48. Qc8 $1 $18 Nxh4 49. Nxe5+ (49. Bxe5 $2 Qxg2#) 49... Kg5 50. Qc2) 48... Qd1+ {[%emt 0:00:52]} 49. Kh2 {[%emt 0:00:04]} Qxb3 {[%emt 0:00:39]} 50. Qd7+ {[%emt 0:02:01]} Ke4 {[%emt 0:00:28]} 51. Qc6+ {[%emt 0:01:18]} Kf5 {[%emt 0:00:04]} 52. Qc8+ {[%emt 0:02:05]} Ke4 {[%emt 0:00:46]} (52... Qe6 53. Nd7 Nxh4 54. Qf8+ (54. Bxe5 Qe7 $16) 54... Kg6 55. Qd8 $18 (55. Nxe5+ Kh7 $11)) 53. Qc1 {[%emt 0:02:11]} Qg3+ {[%emt 0:00:52]} 54. Kh1 {[%emt 0:00:04]} Nxh4 {[%emt 0:00:55]} 55. Qc4+ {[%emt 0:01:07]} Kf5 {[%emt 0:00:45]} 56. Qf7+ {[%emt 0:00:01]} Kg5 {[%emt 0:00:36]} 57. Qxg7+ {[%emt 0:01:19]} Ng6 {[%emt 0:00:01]} 58. Nd5 {[%emt 0:01:09]} Qe1+ {[%emt 0:00:47]} 59. Kh2 {[%emt 0:00:04]} Qg3+ {[%emt 0:00:03]} 60. Kh1 {[%emt 0:00:03]} Qe1+ {[%emt 0:00:56]} 61. Kh2 {[%emt 0:00:08]} Qg3+ {[%emt 0:01:06]} 1/2-1/2

[Event "Czech Extraliga 2024-25"]
[Site "Czechia"]
[Date "2024.11.02"]
[Round "1.5"]
[White "Jirasek, Pavel"]
[Black "Simacek, Pavel"]
[Result "1-0"]
[ECO "A25"]
[WhiteElo "2268"]
[BlackElo "2452"]
[Annotator "TA"]
[PlyCount "97"]
[EventDate "2024.09.12"]
[EventType "team-tourn"]
[EventCountry "CZE"]
[SourceTitle "playchess.com"]
[Source "ChessBase"]
[SourceQuality "1"]
[TimeControl "40/5400+30:1800+30"]

{[%evp 17,97,15,23,17,32,20,26,33,35,24,41,31,35,36,24,24,47,38,76,67,75,58,67,63,70,47,55,62,63,32,50,35,51,42,188,177,183,200,176,159,157,52,275,271,256,238,245,238,217,242,237,231,253,236,263,184,290,283,242,249,223,185,401,396,511,285,282,283,242,249,378,377,362,362,651,649,1000,1100,1160,1136,4938,5033]} 1. c4 {[%emt 0:00:04]} g6 {[%emt 0:00:11]} 2. g3 {[%emt 0:00:08]} Bg7 {[%emt 0:00:05]} 3. Bg2 {[%emt 0:00:07]} e5 {[%emt 0:00:25]} 4. Nc3 {[%emt 0:00:31]} d6 {[%emt 0:00:30]} 5. e3 {[%emt 0:01:08]} Nc6 {[%emt 0:03:49][%cal Bb8c6,Bc6e7,Be7g6][%mdl 32]} 6. d3 {[%emt 0:04:23]} f5 {[%emt 0:01:51]} 7. Nge2 {[%emt 0:01:28]} Nf6 {[%emt 0:00:11]} 8. O-O {[%emt 0:00:14]} O-O {[%emt 0:04:49]} 9. b3 {[%emt 0:00:09]} Ne7 {[%emt 0:06:37]} 10. Bb2 {[%emt 0:03:29]} g5 {[%emt 0:06:32]} 11. f4 {[%emt 0:05:24]} Ng6 {[%emt 0:05:05]} 12. Qd2 {[%emt 0:08:02] White has an edge.} gxf4 {[%emt 0:03:18]} 13. exf4 {[%emt 0:04:53]} c6 {[%emt 0:00:09]} 14. d4 {[%emt 0:10:24]} e4 {[%emt 0:02:51]} 15. d5 {[%emt 0:00:17]} c5 {[%emt 0:00:09]} 16. Nd1 {[%emt 0:01:08]} Bd7 {[%emt 0:01:13]} 17. Ne3 {[%emt 0:00:19]} a6 {[%emt 0:05:06]} 18. Bh3 {[%emt 0:11:43]} Ne7 {[%emt 0:03:32]} 19. b4 {[%emt 0:01:33] Black must now prevent bxc5.} b6 {[%emt 0:07:56]} 20. Rab1 {[%emt 0:01:01]} Qe8 {[%emt 0:00:57]} 21. Kg2 {[%emt 0:08:13]} Qh5 {[%emt 0:02:01]} 22. bxc5 {[%emt 0:00:10]} bxc5 {[%emt 0:00:40]} 23. Ng1 {[%emt 0:00:22]} Rfb8 {[%emt 0:03:22]} 24. Ba1 {[%emt 0:00:37]} Qg6 {[%emt 0:15:25]} 25. Qa5 {[%emt 0:04:16]} h5 {[%emt 0:15:50]} ({Black should play} 25... Ne8 $14) 26. Rxb8+ $1 $18 {[%emt 0:03:12]} Rxb8 {[%emt 0:00:03]} 27. Qc7 $1 {[%emt 0:00:07]} (27. Qxa6 $6 Nc8 $16) 27... Rc8 {[%emt 0:00:52]} 28. Qb7 {[%emt 0:04:30][%cal Oa1f6] Threatens to win with Bxf6!} (28. Qxd6 Nfxd5 29. Nxf5 Ne3+ 30. Kf2 Qxd6 31. Nxd6 Nxf1 32. Nxc8 (32. Bxd7 Rd8 $17) 32... Bxc8 $11) 28... Qe8 {[%emt 0:01:15]} 29. Qxa6 {[%emt 0:03:38] White has more active pieces.} (29. Rb1 $16) 29... Qd8 {[%emt 0:00:38]} (29... Ra8 $14 30. Qxd6 Rxa2+ 31. Kh1 Ng4 32. Bxg4 Bxa1) 30. Bxf6 $1 {[%emt 0:03:44]} (30. Qxd6 $2 Ne8 31. Qa6 Ra8 $19) 30... Bxf6 {[%emt 0:00:29]} 31. Qxd6 {[%emt 0:00:06]} Bd4 {[%emt 0:03:11] [#]} 32. Nc2 {[%emt 0:01:34] Hoping for Nxd4.} Be8 {[%emt 0:01:39] [#]} 33. Qxd8 {[%emt 0:00:32]} Rxd8 {[%emt 0:00:03]} 34. Ne2 {[%emt 0:00:13]} Bf6 {[%emt 0:00:36]} 35. Rb1 {[%emt 0:00:28]} Ra8 {[%emt 0:00:49]} 36. a3 {[%emt 0:00:05]} h4 {[%emt 0:03:58]} (36... Ra7 $142 37. Ne3 Bd7) 37. Rb6 {[%emt 0:02:13]} Bg7 {[%emt 0:00:56]} 38. Rb7 {[%emt 0:11:08]} Nc8 {[%emt 0:00:11]} 39. Rc7 {[%emt 0:00:24] Strongly threatening Ne3.} (39. gxh4 Nd6 40. Rb1 Kf8 $16) 39... Bh5 $2 {[%emt 0:01:37]} (39... Nd6) 40. Bxf5 {[%emt 0:00:26]} Bxe2 {[%emt 0:00:32]} 41. Rxc8+ {[%emt 0:33:07]} Rxc8 {[%emt 0:30:37]} 42. Bxc8 {[%emt 0:00:31]} Bxc4 {[%emt 0:00:00][%mdl 4096] Endgame. KBB-KBN} 43. Ne3 {[%emt 0:00:00]} (43. gxh4 Bxd5 44. Ne3 Bc6 45. Be6+ Kh7 $16) 43... Bd3 {[%emt 0:00:00]} (43... Bb5 {might work better.} 44. d6 (44. gxh4 Bf8 $18) 44... hxg3 45. Be6+ (45. Kxg3 Kf7 $18) (45. hxg3 c4 $18) 45... Kf8) 44. Be6+ {[%emt 0:00:00]} ({Less strong is} 44. gxh4 Bf8 45. Nf5 (45. Be6+ Kg7 $18) 45... c4 $18) 44... Kf8 {[%emt 0:00:00]} 45. d6 {[%emt 0:00:00][%cal Bd5d6,Bd6d7][%mdl 32]} ({Not} 45. gxh4 Bd4 46. Nf5 Bf6 $16) 45... Bd4 $2 {[%emt 0:00:00]} (45... Ke8 46. Nf5 (46. gxh4 Bd4 $18) (46. d7+ Kd8 $18) 46... h3+ 47. Kxh3 Bb2) 46. d7 {[%emt 0:00:00] White is clearly winning.} Bf6 {[%emt 0:00:00]} 47. g4 {[%emt 0:00:00][%cal Bg3g4,Bg4g5][%mdl 32]} Bd8 {[%emt 0:00:00]} 48. g5 {[%emt 0:00:00]} Bb5 {[%emt 0:00:00]} 49. Nf5 {[%emt 0:00:00] Weighted Error Value: White=0.19 (very precise) /Black=0.48.  Loses game:     	---       	Black=1      Mistake:       	White=1     	Black=5      Inaccurate:     	White=3     	Black=2      OK:         	White=12    	Black=14     Best:        	White=6     	Black=2      Strong:       	White=3     	---} 1-0

[Event "Czech Extraliga 2024-25"]
[Site "Czechia"]
[Date "2024.11.02"]
[Round "1.6"]
[White "Baklan, Vladimir"]
[Black "Votava, Jan"]
[Result "1-0"]
[ECO "C77"]
[WhiteElo "2541"]
[BlackElo "2452"]
[Annotator "RC"]
[PlyCount "158"]
[EventDate "2024.09.12"]
[EventType "team-tourn"]
[EventCountry "CZE"]
[SourceTitle "playchess.com"]
[Source "ChessBase"]
[SourceQuality "1"]
[TimeControl "40/5400+30:1800+30"]

1. e4 {[%emt 0:00:03]} e5 {[%emt 0:00:05]} 2. Nf3 {[%emt 0:00:04]} Nc6 {[%emt 0:00:03]} 3. Bb5 {[%emt 0:00:05]} a6 {[%emt 0:00:06]} 4. Ba4 {[%emt 0:00:04]} Nf6 {[%emt 0:00:09]} 5. Nc3 {[%emt 0:00:12]} b5 {[%emt 0:01:08]} 6. Bb3 {[%emt 0:00:05]} Be7 {[%emt 0:00:32]} 7. a4 {[%emt 0:00:06]} b4 {[%emt 0:00:21]} 8. Nd5 {[%emt 0:00:04]} O-O {[%emt 0:01:18]} 9. Nxf6+ {[%emt 0:00:28]} Bxf6 {[%emt 0:00:02]} 10. Bd5 {[%emt 0:00:09]} Bb7 {[%emt 0:00:57]} 11. d3 {[%emt 0:02:26]} Na5 {[%emt 0:01:54]} 12. Bxb7 {[%emt 0:00:43]} Nxb7 {[%emt 0:00:02]} 13. b3 {[%emt 0:00:07]} d5 {[%emt 0:04:55]} 14. Qe2 {[%emt 0:01:06]} Nc5 {[%emt 0:10:06]} 15. Bb2 {[%emt 0:04:58]} Re8 {[%emt 0:16:47]} 16. O-O-O {[%emt 0:10:45]} Qd7 {[%emt 0:02:19]} 17. Rhe1 {[%emt 0:15:54]} d4 {[%emt 0:17:58]} 18. Kb1 {[%emt 0:01:51]} a5 {[%emt 0:01:15]} 19. Nd2 {[%emt 0:01:03]} Nb7 {[%emt 0:02:08]} 20. g3 {[%emt 0:02:47]} Nd6 {[%emt 0:02:34]} 21. f4 {[%emt 0:01:27]} c5 {[%emt 0:01:31]} 22. Rf1 {[%emt 0:05:29]} Bd8 {[%emt 0:06:52]} 23. f5 {[%emt 0:11:20]} Bg5 {[%emt 0:02:19]} 24. Nc4 {[%emt 0:00:09]} Nxc4 {[%emt 0:03:10]} 25. dxc4 {[%emt 0:00:03]} Qc6 {[%emt 0:03:43]} 26. Bc1 {[%emt 0:03:00]} Bxc1 {[%emt 0:01:36]} 27. Rxc1 {[%emt 0:01:06]} f6 {[%emt 0:09:30]} 28. h4 {[%emt 0:03:22]} Rad8 {[%emt 0:06:04]} 29. g4 {[%emt 0:13:04]} Re7 {[%emt 0:00:01]} 30. g5 {[%emt 0:00:37]} Rd6 {[%emt 0:00:22]} 31. Rf3 {[%emt 0:04:35]} Qe8 {[%emt 0:00:34]} 32. Rg3 {[%emt 0:01:49]} Qf8 {[%emt 0:00:37]} 33. Rcg1 {[%emt 0:00:41]} Rb6 {[%emt 0:00:44]} 34. Qh2 {[%emt 0:03:21]} Rd6 {[%emt 0:01:19]} 35. Kc1 {[%emt 0:02:33]} Rb6 {[%emt 0:00:22]} 36. Kd2 {[%emt 0:03:07]} Rd6 {[%emt 0:00:04]} 37. Kd3 {[%emt 0:00:07]} Rb6 {[%emt 0:00:01]} 38. Qh3 {[%emt 0:04:06]} Rd6 {[%emt 0:00:21]} 39. Rg4 {[%emt 0:02:29]} Rb6 {[%emt 0:00:14]} 40. R1g3 {[%emt 0:01:24]} Rd6 {[%emt 0:00:57]} 41. Qg2 {[%emt 0:32:09]} Rb6 {[%emt 0:34:58]} 42. Qd2 {[%emt 0:00:57]} Rd6 {[%emt 0:00:00]} 43. Ke2 {[%emt 0:00:00]} Rb6 {[%emt 0:00:00]} 44. Kd1 {[%emt 0:00:00]} Rd6 {[%emt 0:00:00]} 45. Kc1 {[%emt 0:00:00]} Rb6 {[%emt 0:00:00]} 46. Kb2 {[%emt 0:00:00]} Rd6 {[%emt 0:00:00]} 47. Rh3 {[%emt 0:00:00]} Kh8 {[%emt 0:00:00]} 48. Rf3 {[%emt 0:00:00]} Kg8 {[%emt 0:00:00]} 49. Rfg3 {[%emt 0:00:00]} Rb6 {[%emt 0:00:00]} 50. h5 {[%emt 0:00:00]} fxg5 {[%emt 0:00:00]} 51. Qxg5 {[%emt 0:00:00]} Qf6 {[%emt 0:00:00]} 52. Qd2 {[%emt 0:00:00]} Qh6 {[%emt 0:00:43]} 53. Qh2 {[%emt 0:00:00]} Rf6 {[%emt 0:05:31]} 54. Rh3 {[%emt 0:00:00]} Kf8 {[%emt 0:00:04]} 55. Qg2 {[%emt 0:00:00]} Ke8 {[%emt 0:01:08]} 56. Rg5 {[%emt 0:00:00]} Kf8 {[%emt 0:00:30]} 57. Rg6 {[%emt 0:02:29]} hxg6 {[%emt 0:00:19]} 58. hxg6 {[%emt 0:00:04]} Qxh3 {[%emt 0:00:33]} 59. Qxh3 {[%emt 0:00:04]} Ke8 {[%emt 0:00:12]} 60. Qh7 {[%emt 0:02:26]} Rf8 {[%emt 0:00:31]} 61. f6 {[%emt 0:01:00]} Rxf6 {[%emt 0:00:10]} 62. Qg8+ {[%emt 0:00:08]} Kd7 {[%emt 0:00:58]} 63. Qd5+ {[%emt 0:00:10]} Rd6 {[%emt 0:00:25]} 64. Qxc5 {[%emt 0:01:24]} d3 {[%emt 0:00:48]} 65. cxd3 {[%emt 0:02:09]} Rxg6 {[%emt 0:00:29]} 66. Kc2 {[%emt 0:02:09]} Rg2+ {[%emt 0:00:23]} 67. Kd1 {[%emt 0:00:06]} Rb2 {[%emt 0:00:42]} 68. Qxa5 {[%emt 0:00:13]} Rxb3 {[%emt 0:00:17]} 69. Kc2 {[%emt 0:00:23]} Rc3+ {[%emt 0:00:15]} 70. Kd2 {[%emt 0:00:05]} Rb3 {[%emt 0:00:23]} 71. c5 {[%emt 0:00:20]} Rb2+ {[%emt 0:00:45]} 72. Ke3 {[%emt 0:00:04]} Rb1 {[%emt 0:00:51]} 73. Qa7+ {[%emt 0:02:09]} Ke8 {[%emt 0:00:22]} 74. Qb8+ {[%emt 0:00:54]} Kf7 {[%emt 0:00:09]} 75. a5 {[%emt 0:00:43]} g5 {[%emt 0:00:31]} 76. a6 {[%emt 0:00:15]} Ra1 {[%emt 0:00:20]} 77. c6 {[%emt 0:00:06]} b3 {[%emt 0:01:08]} 78. c7 {[%emt 0:01:01]} b2 {[%emt 0:00:32]} 79. c8=Q {[%emt 0:00:34]} b1=R {[%emt 0:00:28]} 1-0

[Event "Czech Extraliga 2024-25"]
[Site "Czechia"]
[Date "2024.11.02"]
[Round "1.6"]
[White "Vlasak, Lukas"]
[Black "Cerveny, Petr"]
[Result "1/2-1/2"]
[ECO "D30"]
[WhiteElo "2458"]
[BlackElo "2279"]
[Annotator "TA"]
[PlyCount "89"]
[EventDate "2024.09.12"]
[EventType "team-tourn"]
[EventCountry "CZE"]
[SourceTitle "playchess.com"]
[Source "ChessBase"]
[SourceQuality "1"]
[TimeControl "40/5400+30:1800+30"]

{[%evp 17,89,20,12,10,22,3,54,16,41,39,138,111,128,118,118,109,109,112,107,95,108,97,134,138,115,100,99,66,65,63,56,54,52,60,68,60,60,62,62,0,0,7,12,4,4,0,0,0,0,0,0,0,0,0,0,0,0,0,8,0,12,0,12,8,8,8,12,0,0,0,0,0,0,0]} 1. Nf3 {[%emt 0:00:07]} Nf6 {[%emt 0:00:15]} 2. c4 {[%emt 0:00:14]} e6 {[%emt 0:00:32]} 3. g3 {[%emt 0:00:17]} d5 {[%emt 0:00:37]} 4. Bg2 {[%emt 0:00:11]} Be7 {[%emt 0:00:10]} 5. d4 {[%emt 0:00:41]} O-O {[%emt 0:00:48]} 6. O-O {[%emt 0:00:09]} dxc4 {[%emt 0:00:19]} 7. Qc2 {[%emt 0:01:01]} c6 {[%emt 0:00:14]} 8. Qxc4 {[%emt 0:03:16]} b5 {[%emt 0:00:06]} 9. Qc2 {[%emt 0:01:00]} Bb7 {[%emt 0:00:16]} 10. Rd1 {[%emt 0:01:26]} Nbd7 {[%emt 0:02:05]} 11. Bg5 {[%emt 0:06:35]} Rc8 {[%emt 0:08:19]} (11... Qb6 $11) 12. Nc3 {[%emt 0:07:14] White is slightly better.} (12. Ne5 $5) 12... Qb6 {[%emt 0:18:02]} 13. Ne5 {[%emt 0:21:34] [#] Hoping for Nxd7.} Bb4 {[%emt 0:31:19]} (13... Rfd8 $14) 14. Ne4 {[%emt 0:09:15] a3 is the strong threat. White is much more active.} Nxe5 {[%emt 0:04:51]} 15. dxe5 {[%emt 0:01:18]} (15. Nxf6+ $2 gxf6 16. Bxf6 Ng6 $19) 15... Nxe4 {[%emt 0:30:07]} 16. Bxe4 {[%emt 0:00:14]} h6 {[%emt 0:00:00] [#]} 17. Be3 {[%emt 0:00:11]} Qc7 {[%emt 0:00:00]} (17... c5 $2 18. a3 Ba5 (18... Bxe4 $2 19. Qxe4 Ba5 20. b4 $18) 19. b4 $18) 18. Bc5 {[%emt 0:00:40]} Bxc5 {[%emt 0:00:00]} 19. Qxc5 {[%emt 0:00:11]} Rfd8 {[%emt 0:00:00]} 20. Rd6 {[%emt 0:04:16]} (20. Qxa7 Qxe5 21. Bf3 Qc7 $16) 20... Qb6 {[%emt 0:00:00]} 21. Qxb6 {[%emt 0:14:02]} axb6 {[%emt 0:00:00]} 22. Rad1 {[%emt 0:00:21]} Rxd6 {[%emt 0:00:00]} 23. Rxd6 $14 {[%emt 0:00:13][%mdl 4096] Endgame. KRB-KRB} ({Much weaker is} 23. exd6 Rd8 $11) 23... b4 $1 {[%emt 0:00:00]} 24. Rd4 {[%emt 0:02:53]} Ba8 $1 {[%emt 0:00:00]} 25. Rxb4 {[%emt 0:09:31]} c5 {[%emt 0:00:00]} 26. Ra4 {[%emt 0:00:11]} (26. Rxb6 $2 {is the wrong capture.} Bxe4 27. f3 Bd5 $19) 26... Bxe4 {[%emt 0:00:00]} 27. Rxe4 {[%emt 0:00:24] KR-KR} Rd8 {[%emt 0:00:26]} 28. b4 {[%emt 0:06:10]} (28. Re3 $14) 28... cxb4 $11 {[%emt 0:01:04] The position is equal.} 29. Rxb4 {[%emt 0:00:19]} Rd2 {[%emt 0:00:32][%csl LRa2,LRe2]} 30. Kf1 {[%emt 0:01:52]} ({Of course not} 30. Rxb6 Rxe2 31. Ra6 Rxe5 $17) 30... Rxa2 {[%emt 0:00:12]} 31. f4 {[%emt 0:00:58]} Ra6 {[%emt 0:02:09]} 32. Kf2 {[%emt 0:01:17]} h5 {[%emt 0:00:11]} 33. Kf3 {[%emt 0:02:14]} g6 {[%emt 0:00:31]} 34. Rb3 {[%emt 0:01:43]} Kg7 {[%emt 0:00:06]} 35. h3 {[%emt 0:00:48]} Kh6 {[%emt 0:00:24]} 36. g4 {[%emt 0:01:04]} hxg4+ {[%emt 0:00:08]} 37. hxg4 {[%emt 0:00:26]} Kg7 {[%emt 0:00:38]} 38. e3 {[%emt 0:03:00]} Kh7 {[%emt 0:00:15]} 39. Rc3 {[%emt 0:00:56]} Ra1 {[%emt 0:02:22]} 40. Rc7 {[%emt 0:00:27]} Kg7 {[%emt 0:00:22]} 41. Rb7 {[%emt 0:30:07]} Rb1 {[%emt 0:31:14]} 42. e4 {[%emt 0:02:11]} Rb3+ {[%emt 0:00:00]} 43. Kf2 {[%emt 0:00:00]} Rb5 {[%emt 0:00:00]} 44. Ke3 {[%emt 0:00:00]} g5 {[%emt 0:00:00] ...Rb3+ would now be deadly.} 45. f5 {[%emt 0:00:00] Weighted Error Value: White=0.11 (very precise) /Black=0.12 (very precise) .  Mistake:       	White=1     	Black=2      Inaccurate:     	White=2     	Black=1      OK:         	White=7     	Black=22     Best:        	White=1     	Black=1      Strong:       	---       	Black=2} 1/2-1/2

[Event "Czech Extraliga 2024-25"]
[Site "Czechia"]
[Date "2024.11.02"]
[Round "1.6"]
[White "Piesik, Piotr"]
[Black "Jurcik, Marian"]
[Result "1/2-1/2"]
[ECO "D37"]
[WhiteElo "2421"]
[BlackElo "2408"]
[Annotator "TA"]
[PlyCount "22"]
[EventDate "2024.09.12"]
[EventType "team-tourn"]
[EventCountry "CZE"]
[SourceTitle "playchess.com"]
[Source "ChessBase"]
[SourceQuality "1"]
[TimeControl "40/5400+30:1800+30"]

{[%evp 9,22,14,16,12,52,45,38,52,46,17,18,21,20,18,36]} 1. d4 {[%emt 0:00:13]} d5 {[%emt 0:00:38]} 2. c4 {[%emt 0:00:18]} e6 {[%emt 0:00:16]} 3. Nc3 {[%emt 0:00:21]} Nf6 {[%emt 0:00:41]} 4. Nf3 {[%emt 0:01:30]} Nbd7 {[%emt 0:02:04]} 5. Bf4 {[%emt 0:06:00]} dxc4 {[%emt 0:01:48]} 6. e3 {[%emt 0:01:56]} b5 {[%emt 0:00:07]} 7. Nxb5 {[%emt 0:04:56]} Bb4+ {[%emt 0:00:04]} 8. Nc3 {[%emt 0:18:25]} Nd5 {[%emt 0:00:39]} 9. Rc1 {[%emt 0:00:06]} N7b6 $1 {[%emt 0:50:33] The position is equal.} 10. Bg3 {[%emt 0:14:47]} O-O {[%emt 0:03:40]} ({But not} 10... Bxc3+ $6 11. bxc3 O-O 12. Nd2 $16) 11. Be2 {[%emt 0:14:06]} c5 {[%emt 0:05:31] Weighted Error Value: White=0.06 (flawless) /Black=0.05 (flawless) .  Inaccurate:     	White=1     	Black=1      OK:         	White=3     	Black=2      Best:        	White=1     	---        Strong:       	---       	Black=1} 1/2-1/2